Workbook

Sheet Dagontvangsten
B2: DAGONTVANGSTEN
D4: KAREN | G4: KATHELIJN
D5: Kostprijs | G5: Kostprijs
A6: maand | B6: datum | C6: omschrijving | D6: Behandeling | E6: Producten | F6: Inlevering cadeaubon | G6: Behandeling2 | H6: Producten3 | I6: Inlevering cadeaubon4
A7: =Tabel2[[#This Row],[datum]] -> 2023-04-01 | B7: 2023-04-01 | C7: rim ram | D7: 108
A8: =Tabel2[[#This Row],[datum]] -> 2023-04-01 | B8: 2023-04-01 | C8: rim ram | D8: 45
A9: =Tabel2[[#This Row],[datum]] -> 2023-04-01 | B9: 2023-04-01 | C9: rim ram | D9: 36.5
A10: =Tabel2[[#This Row],[datum]] -> 2023-04-01 | B10: 2023-04-01 | C10: gellak | G10: 28.5
A11: =Tabel2[[#This Row],[datum]] -> 2023-04-01 | B11: 2023-04-01 | C11: pedicure | G11: 25
A12: =Tabel2[[#This Row],[datum]] -> 2023-04-01 | B12: 2023-04-01 | C12: massage rug | G12: 35
A13: =Tabel2[[#This Row],[datum]] -> 2023-04-01 | B13: 2023-04-01 | C13: pedicure | G13: 25
A14: =Tabel2[[#This Row],[datum]] -> 2023-04-01 | B14: 2023-04-01 | C14: epilatie wenkbrauwen | G14: 11
A15: =Tabel2[[#This Row],[datum]] -> 2023-04-01 | B15: 2023-04-01 | C15: gelaatsverzorging | G15: 50
A16: =Tabel2[[#This Row],[datum]] -> 2023-04-01 | B16: 2023-04-01 | C16: massage rug | G16: 35
A17: =Tabel2[[#This Row],[datum]] -> 2023-04-01 | B17: 2023-04-01 | C17: pedicure | G17: 25
A18: =Tabel2[[#This Row],[datum]] -> 2023-04-01 | B18: 2023-04-01 | C18: epilatie wenkbrauwen + bovenlip | G18: 22.5
A19: =Tabel2[[#This Row],[datum]] -> 2023-04-08 | B19: 2023-04-08 | C19: massage rug | G19: 35
A20: =Tabel2[[#This Row],[datum]] -> 2023-04-08 | B20: 2023-04-08 | C20: epilatie wenkbrauwen | G20: 11
A21: =Tabel2[[#This Row],[datum]] -> 2023-04-08 | B21: 2023-04-08 | C21: pedicure | G21: 25
A22: =Tabel2[[#This Row],[datum]] -> 2023-04-08 | B22: 2023-04-08 | C22: gelaatsverzorging | G22: 50
A23: =Tabel2[[#This Row],[datum]] -> 2023-04-08 | B23: 2023-04-08 | C23: gelaatsverzorging + microdermabrasie | G23: 65
A24: =Tabel2[[#This Row],[datum]] -> 2023-04-08 | B24: 2023-04-08 | C24: pedicure | G24: 25
A25: =Tabel2[[#This Row],[datum]] -> 2023-04-08 | B25: 2023-04-08 | C25: pedicure | G25: 25
A26: =Tabel2[[#This Row],[datum]] -> 2023-04-08 | B26: 2023-04-08 | C26: pedicure | G26: 25
A27: =Tabel2[[#This Row],[datum]] -> 2023-04-08 | B27: 2023-04-08 | C27: pedicure + gellak | G27: 47
A28: =Tabel2[[#This Row],[datum]] -> 2023-04-08 | B28: 2023-04-08 | C28: verkoop | H28: 55
A29: =Tabel2[[#This Row],[datum]] -> 2023-04-12 | B29: 2023-04-12 | C29: cadeaubon | D29: 50
A30: =Tabel2[[#This Row],[datum]] -> 2023-04-12 | B30: 2023-04-12 | C30: gelnagels | D30: 38.5
A31: =Tabel2[[#This Row],[datum]] -> 2023-04-12 | B31: 2023-04-12 | C31: gelnagels | D31: 38.5
A32: =Tabel2[[#This Row],[datum]] -> 2023-04-12 | B32: 2023-04-12 | C32: rim ram | D32: 84.5
A33: =Tabel2[[#This Row],[datum]] -> 2023-04-12 | B33: 2023-04-12 | C33: pedicure + gellak | D33: 47
A34: =Tabel2[[#This Row],[datum]] -> 2023-04-12 | B34: 2023-04-12 | C34: gelnagels | D34: 38.5
A35: =Tabel2[[#This Row],[datum]] -> 2023-04-12 | B35: 2023-04-12 | C35: pedicure | D35: 25
A36: =Tabel2[[#This Row],[datum]] -> 2023-04-12 | B36: 2023-04-12 | C36: rim ram | D36: 29
A37: =Tabel2[[#This Row],[datum]] -> 2023-04-12 | B37: 2023-04-12 | C37: pedicure | D37: 25
A38: =Tabel2[[#This Row],[datum]] -> 2023-04-14 | B38: 2023-04-14 | C38: verkoop | E38: 55
A39: =Tabel2[[#This Row],[datum]] -> 2023-04-14 | B39: 2023-04-14 | C39: rim ram | D39: 59
A40: =Tabel2[[#This Row],[datum]] -> 2023-04-15 | B40: 2023-04-15 | C40: rim ram | D40: 171
A41: =Tabel2[[#This Row],[datum]] -> 2023-04-15 | B41: 2023-04-15 | C41: pedicure | D41: 25
A42: =Tabel2[[#This Row],[datum]] -> 2023-04-15 | B42: 2023-04-15 | C42: gelnagels | D42: 38.5
A43: =Tabel2[[#This Row],[datum]] -> 2023-04-15 | B43: 2023-04-15 | C43: rim ram | D43: 71
A44: =Tabel2[[#This Row],[datum]] -> 2023-04-15 | B44: 2023-04-15 | C44: massage rug | G44: 35
A45: =Tabel2[[#This Row],[datum]] -> 2023-04-15 | B45: 2023-04-15 | C45: gelaatsverzorging | G45: 50
A46: =Tabel2[[#This Row],[datum]] -> 2023-04-15 | B46: 2023-04-15 | C46: epilatie bovenlip | G46: 11.5
A47: =Tabel2[[#This Row],[datum]] -> 2023-04-15 | B47: 2023-04-15 | C47: pedicure | G47: 25
A48: =Tabel2[[#This Row],[datum]] -> 2023-04-15 | B48: 2023-04-15 | C48: gelaatsverzorging + microdermabrasie | G48: 65
A49: =Tabel2[[#This Row],[datum]] -> 2023-04-15 | B49: 2023-04-15 | C49: kleuren wenkbrauw | G49: 12
A50: =Tabel2[[#This Row],[datum]] -> 2023-04-15 | B50: 2023-04-15 | C50: pedicure | G50: 25
A51: =Tabel2[[#This Row],[datum]] -> 2023-04-15 | B51: 2023-04-15 | C51: pedicure | G51: 25
A52: =Tabel2[[#This Row],[datum]] -> 2023-04-15 | B52: 2023-04-15 | C52: epilatie wenkbrauwen | G52: 11
A53: =Tabel2[[#This Row],[datum]] -> 2023-04-15 | B53: 2023-04-15 | C53: epilatie bovenlip | G53: 11.5
A54: =Tabel2[[#This Row],[datum]] -> 2023-04-15 | B54: 2023-04-15 | C54: epilatie oksels | G54: 14
A55: =Tabel2[[#This Row],[datum]] -> 2023-04-15 | B55: 2023-04-15 | C55: gelaatsverzorging | G55: 50
A56: =Tabel2[[#This Row],[datum]] -> 2023-04-15 | B56: 2023-04-15 | C56: epilatie bovenlip | G56: 11.5
A57: =Tabel2[[#This Row],[datum]] -> 2023-04-15 | B57: 2023-04-15 | C57: gelaatsverzorging | G57: 50
A58: =Tabel2[[#This Row],[datum]] -> 2023-04-15 | B58: 2023-04-15 | C58: epilatie bovenlip | G58: 11.5
A59: =Tabel2[[#This Row],[datum]] -> 2023-04-15 | B59: 2023-04-15 | C59: pedicure | G59: 25
A60: =Tabel2[[#This Row],[datum]] -> 2023-04-19 | B60: 2023-04-19 | C60: rim ram | D60: 23
A61: =Tabel2[[#This Row],[datum]] -> 2023-04-19 | B61: 2023-04-19 | C61: gelnagels | D61: 38.5
A62: =Tabel2[[#This Row],[datum]] -> 2023-04-19 | B62: 2023-04-19 | C62: gellak | D62: 28.5
A63: =Tabel2[[#This Row],[datum]] -> 2023-04-19 | B63: 2023-04-19 | C63: rim ram | D63: 58
A64: =Tabel2[[#This Row],[datum]] -> 2023-04-19 | B64: 2023-04-19 | C64: rim ram | D64: 45.5
A65: =Tabel2[[#This Row],[datum]] -> 2023-04-19 | B65: 2023-04-19 | C65: inleveren cadeaubon | F65: 60
A66: =Tabel2[[#This Row],[datum]] -> 2023-04-19 | B66: 2023-04-19 | C66: verkoop | E66: 42
A67: =Tabel2[[#This Row],[datum]] -> 2023-04-19 | B67: 2023-04-19 | C67: rim ram | D67: 55
A68: =Tabel2[[#This Row],[datum]] -> 2023-04-21 | B68: 2023-04-21 | C68: rim ram | D68: 45
A69: =Tabel2[[#This Row],[datum]] -> 2023-04-21 | B69: 2023-04-21 | C69: pedicure + gellak | D69: 47
A70: =Tabel2[[#This Row],[datum]] -> 2023-04-21 | B70: 2023-04-21 | C70: pedicure | D70: 25
A71: =Tabel2[[#This Row],[datum]] -> 2023-04-21 | B71: 2023-04-21 | C71: gelnagels | D71: 38.5
A72: =Tabel2[[#This Row],[datum]] -> 2023-04-21 | B72: 2023-04-21 | C72: gelnagels | D72: 38.5
A73: =Tabel2[[#This Row],[datum]] -> 2023-04-22 | B73: 2023-04-22 | C73: oksels | D73: 14
A74: =Tabel2[[#This Row],[datum]] -> 2023-04-22 | B74: 2023-04-22 | C74: gelnagels | D74: 38.5
A75: =Tabel2[[#This Row],[datum]] -> 2023-04-22 | B75: 2023-04-22 | C75: rim ram | D75: 177
A76: =Tabel2[[#This Row],[datum]] -> 2023-04-22 | B76: 2023-04-22 | C76: pedicure + gellak | D76: 47
A77: =Tabel2[[#This Row],[datum]] -> 2023-04-22 | B77: 2023-04-22 | C77: pedicure | D77: 25
A78: =Tabel2[[#This Row],[datum]] -> 2023-04-26 | B78: 2023-04-26 | C78: rim ram | D78: 73.5
A79: =Tabel2[[#This Row],[datum]] -> 2023-04-26 | B79: 2023-04-26 | C79: rim ram | D79: 131
A80: =Tabel2[[#This Row],[datum]] -> 2023-04-26 | B80: 2023-04-26 | C80: rim ram | D80: 69
A81: =Tabel2[[#This Row],[datum]] -> 2023-04-26 | B81: 2023-04-26 | C81: rim ram | D81: 33
A82: =Tabel2[[#This Row],[datum]] -> 2023-04-26 | B82: 2023-04-26 | C82: pedicure + gellak | D82: 47
A83: =Tabel2[[#This Row],[datum]] -> 2023-04-26 | B83: 2023-04-26 | C83: gelnagels | D83: 38.5
A84: =Tabel2[[#This Row],[datum]] -> 2023-04-29 | B84: 2023-04-29 | C84: pedicure | G84: 25
A85: =Tabel2[[#This Row],[datum]] -> 2023-04-29 | B85: 2023-04-29 | C85: pedicure | G85: 25
A86: =Tabel2[[#This Row],[datum]] -> 2023-04-29 | B86: 2023-04-29 | C86: pedicure | G86: 25
A87: =Tabel2[[#This Row],[datum]] -> 2023-04-29 | B87: 2023-04-29 | C87: epilatie wenkbrauwen | G87: 11
A88: =Tabel2[[#This Row],[datum]] -> 2023-04-29 | B88: 2023-04-29 | C88: pedicure | G88: 25
A89: =Tabel2[[#This Row],[datum]] -> 2023-04-29 | B89: 2023-04-29 | C89: epilatie oksels | G89: 14
A90: =Tabel2[[#This Row],[datum]] -> 2023-04-29 | B90: 2023-04-29 | C90: pedicure | G90: 25
A91: =Tabel2[[#This Row],[datum]] -> 2023-04-29 | B91: 2023-04-29 | C91: luxe microdermabrasie + epilatie | G91: 106.5
A92: =Tabel2[[#This Row],[datum]] -> 2023-04-29 | B92: 2023-04-29 | C92: pedicure + gellak | G92: 47
A93: =Tabel2[[#This Row],[datum]] -> 2023-04-29 | B93: 2023-04-29 | C93: pedicure | G93: 25
A94: 2023-05-23 | B94: 2023-05-10 | C94: gelnagels | D94: 38 | E94: 0 | F94: 0
A95: 2023-05-23 | B95: 2023-05-10 | C95: epilatie oksels | G95: 14 | H95: 0 | I95: 0
A96: 2023-05-23 | B96: 2023-05-10 | C96: kleuren wenkbrauw | D96: 12 | E96: 0 | F96: 0
A97: 2023-12-23 | B97: 2023-12-12 | C97: gellak | G97: 30.5
A98: 2023-12-23 | B98: 2023-12-12 | C98: bodypeeling | H98: 31

Sheet Omzet 2023
C3: omzet | D3: 2023
C6: =DATE($D$3,COLUMN(A1),1) -> 2023-01-01 | D6: =DATE($D$3,COLUMN(B1),1) -> 2023-02-01 | E6: 2023-03-01 | F6: 2023-04-01 | G6: 2023-05-01 | H6: 2023-06-01 | I6: 2023-07-01 | J6: 2023-08-01 | K6: 2023-09-01 | L6: 2023-10-01 | M6: 2023-11-01 | N6: 2023-12-01 | O6: SOM
B8: Behandelingen | C8: =SUMIFS(Tabel2[Behandeling],Tabel2[datum],">="&'Omzet 2023'!C6,Tabel2[datum],"<"&'Omzet 2023'!D6)+SUMIFS(Tabel2[Behandeling2],Tabel2[datum],">="&'Omzet 2023'!C6,Tabel2[datum],"<"&'Omzet 2023'!D6) -> 0 | D8: =SUMIFS(Tabel2[Behandeling],Tabel2[datum],">="&'Omzet 2023'!D6,Tabel2[datum],"<"&'Omzet 2023'!E6)+SUMIFS(Tabel2[Behandeling2],Tabel2[datum],">="&'Omzet 2023'!D6,Tabel2[datum],"<"&'Omzet 2023'!E6) -> 0 | E8: =SUMIFS(Tabel2[Behandeling],Tabel2[datum],">="&'Omzet 2023'!E6,Tabel2[datum],"<"&'Omzet 2023'!F6)+SUMIFS(Tabel2[Behandeling2],Tabel2[datum],">="&'Omzet 2023'!E6,Tabel2[datum],"<"&'Omzet 2023'!F6) -> 0 | F8: =SUMIFS(Tabel2[Behandeling],Tabel2[datum],">="&'Omzet 2023'!F6,Tabel2[datum],"<"&'Omzet 2023'!G6)+SUMIFS(Tabel2[Behandeling2],Tabel2[datum],">="&'Omzet 2023'!F6,Tabel2[datum],"<"&'Omzet 2023'!G6) -> 3392.5 | G8: =SUMIFS(Tabel2[Behandeling],Tabel2[datum],">="&'Omzet 2023'!G6,Tabel2[datum],"<"&'Omzet 2023'!H6)+SUMIFS(Tabel2[Behandeling2],Tabel2[datum],">="&'Omzet 2023'!G6,Tabel2[datum],"<"&'Omzet 2023'!H6) -> 64 | H8: =SUMIFS(Tabel2[Behandeling],Tabel2[datum],">="&'Omzet 2023'!H6,Tabel2[datum],"<"&'Omzet 2023'!I6)+SUMIFS(Tabel2[Behandeling2],Tabel2[datum],">="&'Omzet 2023'!H6,Tabel2[datum],"<"&'Omzet 2023'!I6) -> 0 | I8: =SUMIFS(Tabel2[Behandeling],Tabel2[datum],">="&'Omzet 2023'!I6,Tabel2[datum],"<"&'Omzet 2023'!J6)+SUMIFS(Tabel2[Behandeling2],Tabel2[datum],">="&'Omzet 2023'!I6,Tabel2[datum],"<"&'Omzet 2023'!J6) -> 0 | J8: =SUMIFS(Tabel2[Behandeling],Tabel2[datum],">="&'Omzet 2023'!J6,Tabel2[datum],"<"&'Omzet 2023'!K6)+SUMIFS(Tabel2[Behandeling2],Tabel2[datum],">="&'Omzet 2023'!J6,Tabel2[datum],"<"&'Omzet 2023'!K6) -> 0 | K8: =SUMIFS(Tabel2[Behandeling],Tabel2[datum],">="&'Omzet 2023'!K6,Tabel2[datum],"<"&'Omzet 2023'!L6)+SUMIFS(Tabel2[Behandeling2],Tabel2[datum],">="&'Omzet 2023'!K6,Tabel2[datum],"<"&'Omzet 2023'!L6) -> 0 | L8: =SUMIFS(Tabel2[Behandeling],Tabel2[datum],">="&'Omzet 2023'!L6,Tabel2[datum],"<"&'Omzet 2023'!M6)+SUMIFS(Tabel2[Behandeling2],Tabel2[datum],">="&'Omzet 2023'!L6,Tabel2[datum],"<"&'Omzet 2023'!M6) -> 0 | M8: =SUMIFS(Tabel2[Behandeling],Tabel2[datum],">="&'Omzet 2023'!M6,Tabel2[datum],"<"&'Omzet 2023'!N6)+SUMIFS(Tabel2[Behandeling2],Tabel2[datum],">="&'Omzet 2023'!M6,Tabel2[datum],"<"&'Omzet 2023'!N6) -> 0 | N8: =SUMIFS(Tabel2[Behandeling],Tabel2[datum],">="&'Omzet 2023'!N6,Tabel2[datum],"<"&datu(D3,12,1))+SUMIFS(Tabel2[Behandeling2],Tabel2[datum],">="&'Omzet 2023'!N6,Tabel2[datum],"<"&DATE(D3,12,31)) -> 30.5 | O8: =SUM(C8:N8) -> 3487
B9: Verkoop producten | C9: 352 | D9: 273 | E9: =#REF! ->  | F9: =Dagontvangsten!#REF! ->  | G9: =#REF! ->  | H9: =#REF! ->  | I9: =#REF! ->  | J9: =#REF! ->  | K9: =#REF! ->  | L9: =#REF! ->  | M9: =#REF! ->  | N9: =#REF! ->  | O9: =SUM(C9:N9) -> 
B11: Kathelijn factuurbedrag | C11: 281.15 | D11: 509.41 | E11: 483.22 | F11: 870.48 | O11: =SUM(C11:N11) -> 2144.26
B12: Kathelijn behandelingen (100%) | C12: =SUMIFS(Tabel2[Behandeling2],Tabel2[datum],">="&'Omzet 2023'!C6,Tabel2[datum],"<"&'Omzet 2023'!D6) -> 0 | D12: =SUMIFS(Tabel2[Behandeling2],Tabel2[datum],">="&'Omzet 2023'!D6,Tabel2[datum],"<"&'Omzet 2023'!E6) -> 0 | E12: =SUMIFS(Tabel2[Behandeling2],Tabel2[datum],">="&'Omzet 2023'!E6,Tabel2[datum],"<"&'Omzet 2023'!F6) -> 0 | F12: =SUMIFS(Tabel2[Behandeling2],Tabel2[datum],">="&'Omzet 2023'!F6,Tabel2[datum],"<"&'Omzet 2023'!G6) -> 1326.5 | G12: =SUMIFS(Tabel2[Behandeling2],Tabel2[datum],">="&'Omzet 2023'!G6,Tabel2[datum],"<"&'Omzet 2023'!H6) -> 14 | H12: =SUMIFS(Tabel2[Behandeling2],Tabel2[datum],">="&'Omzet 2023'!H6,Tabel2[datum],"<"&'Omzet 2023'!I6) -> 0 | I12: =SUMIFS(Tabel2[Behandeling2],Tabel2[datum],">="&'Omzet 2023'!I6,Tabel2[datum],"<"&'Omzet 2023'!J6) -> 0 | J12: =SUMIFS(Tabel2[Behandeling2],Tabel2[datum],">="&'Omzet 2023'!J6,Tabel2[datum],"<"&'Omzet 2023'!K6) -> 0 | K12: =SUMIFS(Tabel2[Behandeling2],Tabel2[datum],">="&'Omzet 2023'!K6,Tabel2[datum],"<"&'Omzet 2023'!L6) -> 0 | L12: =SUMIFS(Tabel2[Behandeling2],Tabel2[datum],">="&'Omzet 2023'!L6,Tabel2[datum],"<"&'Omzet 2023'!M6) -> 0 | M12: =SUMIFS(Tabel2[Behandeling2],Tabel2[datum],">="&'Omzet 2023'!M6,Tabel2[datum],"<"&'Omzet 2023'!N6) -> 0 | N12: =SUMIFS(Tabel2[Behandeling2],Tabel2[datum],">="&'Omzet 2023'!N6,Tabel2[datum],"<"&DATE(D3,12,31)) -> 30.5 | O12: =SUM(C12:N12) -> 1371
B13: Kathelijn verkoop producten (100%) | D13: 55 | E13: =#REF! ->  | F13: =Dagontvangsten!#REF! ->  | G13: =#REF! ->  | H13: =#REF! ->  | I13: =#REF! ->  | J13: =#REF! ->  | K13: =#REF! ->  | L13: =#REF! ->  | M13: =#REF! ->  | N13: =#REF! -> 
B14: Verschil | C14: =C12-C11-C13 -> -281.15 | D14: =D12-D11-D13 -> -564.41 | O14: =SUM(C14:N14) -> 
B16: Maandelijks totaal | C16: =C8+C9+C12+C13 -> 352 | D16: =D8+D9+D12+D13 -> 328
B18: Totaal | C18: =C16 -> 352 | D18: =C18+D16 -> 680 | E18: =D18+E16 ->  | O18: =N18 -> 
B19: behandeling | F19: =IF(F8>0,F12/F8,"") -> 0.39100958 | G19: =IF(G8>0,G12/G8,"") -> 0.21875 | N19: 1 | O19: 0.3931746487
B28: Kathelijn -> 65% behandelingen en 15% verkoop producten.
B31: Totaal = behandelingen + verkoop producten + Kathelijn behandelingen + Kathelijn verkoop producten

Sheet Data
A1: omschrijving | D1: namen | F1: producten
A2: cadeaubon | D2: Karen | F2: handcreme | G2: 21.5
A3: epilatie bovenlip | B3: 13.5 | D3: Kathelijn | F3: bodycreme | G3: 21
A4: epilatie kin | B4: 13.5 | F4: bodypeeling | G4: 31
A5: epilatie oksels | B5: 15.5 | F5: cadaubon
A6: epilatie wangen | B6: 13.5
A7: epilatie wenkbrauwen | B7: 12.5
A8: gelaatsverzorging basis | B8: 55
A9: gelaatsverzorging mini | B9: 40
A10: gelaatsverzoring luxe | B10: 80
A11: gellak | B11: 30.5
A12: gelnagels | B12: 39.5
A13: gelnagels verlenging | B13: 51.5
A14: make up | B14: 30
A15: manicure | B15: 27.5
A16: manicure + lakken | B16: 38
A17: manicure luxe | B17: 40
A18: manicure luxe + lakken | B18: 38
A19: massage rug en nek | B19: 35
A20: massage volledige lichaam | B20: 65
A21: microdermabrasie basis | B21: 70
A22: microdermabrasie kort | B22: 53
A23: microdermabrasie kuurverzorging | B23: 280
A24: microdermabrasie uitgebreid | B24: 100
A25: ontharing benen volledig | B25: 34
A26: ontharing bikinilijn | B26: 16.5
A27: ontharing bikinilijn volledig | B27: 22
A28: ontharing borstkas | B28: 29.5
A29: ontharing onderbenen/armen | B29: 24
A30: ontharing rug | B30: 29.5
A31: pedicure | B31: 27.5
A32: pedicure + gellak | B32: 50.5
A33: pedicure + lakken | B33: 38
A34: reparatie teennagel | B34: 9.5
A35: verven wimpers / wenkbrauwen | B35: 14
A36: verwenarrangement voeten | B36: 78
A37: rim ram

Sheet samenvatting
B1: Behandeling Karen | C1: Producten Karen | D1: Inlevering cadeau Karen | E1: Behandeling Kathelijn | F1: Producten Kathelijn | G1: Inlevering cadeau Kathelijn
A2: cadeaubon | B2: 50
A3: epilatie bovenlip | E3: 46
A4: epilatie oksels | E4: 42 | F4: 0 | G4: 0
A5: epilatie wenkbrauwen | E5: 44
A6: epilatie wenkbrauwen + bovenlip | E6: 22.5
A7: gelaatsverzorging | E7: 250
A8: gelaatsverzorging + microdermabrasie | E8: 130
A9: gellak | B9: 28.5 | E9: 28.5
A10: gelnagels | B10: 384.5 | C10: 0 | D10: 0
A11: inleveren cadeaubon | D11: 60
A12: kleuren wenkbrauw | B12: 12 | C12: 0 | D12: 0 | E12: 12
A13: luxe microdermabrasie + epilatie | E13: 106.5
A14: massage rug | E14: 140
A15: oksels | B15: 14
A16: pedicure | B16: 100 | E16: 425
A17: pedicure | B17: 25
A18: pedicure + gellak | B18: 188 | E18: 94
A19: rim ram | B19: 1314
A20: verkoop | C20: 97 | F20: 55
A21: Eindtotaal | B21: 2116 | C21: 97 | D21: 60 | E21: 1340.5 | F21: 55 | G21: 0
